bitfinex/quotes_BTCUSD_20251117
["timestamp","ask_amount","ask_price","bid_price","bid_amount"]
[1763376701968,0.6137851,95931.0,95930.0,0.00024479]
[1763376703704,0.59741977,95931.0,95930.0,0.00024479]
[1763376707014,0.61378539,95931.0,95930.0,0.00024479]
[1763376717720,0.59741977,95931.0,95930.0,0.00024479]
[1763376719553,0.63755436,95931.0,95930.0,0.00024479]
[1763376719760,0.77879288,95931.0,95930.0,0.00024479]
[1763376719965,0.63755436,95931.0,95930.0,0.00024479]
[1763376720165,0.6375566,95931.0,95930.0,0.00024479]
[1763376721100,0.64482245,95931.0,95930.0,0.00024479]
[1763376721442,0.60821388,95931.0,95930.0,0.00024479]
[1763376721793,0.60721388,95931.0,95930.0,0.00024479]
[1763376722002,0.60821388,95931.0,95930.0,0.00024479]
[1763376722357,0.64581458,95931.0,95930.0,0.00024479]
[1763376722565,0.60721388,95931.0,95930.0,0.00024479]
[1763376722769,0.66468336,95931.0,95930.0,0.00024479]
[1763376724234,0.66368336,95931.0,95930.0,0.00024479]
[1763376724450,0.91428336,95931.0,95930.0,0.00024479]
[1763376725377,0.91328336,95931.0,95930.0,0.00024479]
[1763376725575,1.01795274,95931.0,95930.0,0.00024479]
[1763376725833,1.01795274,95931.0,95894.0,0.1]
[1763376725834,0.57498018,95895.0,95894.0,0.1]
[1763376726527,0.60634188,95895.0,95894.0,0.1]
[1763376727009,0.60634188,95895.0,95894.0,0.10013255]
[1763376727761,0.39778044,95895.0,95894.0,0.10013255]
[1763376728173,0.60634188,95895.0,95894.0,0.10013255]
[1763376728974,0.39778044,95895.0,95894.0,0.10013255]
[1763376729213,0.60634188,95895.0,95894.0,0.10013255]
[1763376731184,0.41414855,95895.0,95894.0,0.10013255]
[1763376731427,0.41414855,95895.0,95894.0,0.10111191]
[1763376731631,0.39778044,95895.0,95894.0,0.10111191]
[1763376734335,0.3543617,95895.0,95894.0,0.10111191]
[1763376734715,0.3707296,95895.0,95894.0,0.10111191]
[1763376743744,0.57929104,95895.0,95894.0,0.10111191]
[1763376743919,0.41414834,95895.0,95894.0,0.10111191]
[1763376747132,0.62270978,95895.0,95894.0,0.10111191]
[1763376748240,0.41414834,95895.0,95894.0,0.10111191]
[1763376748661,0.3707296,95895.0,95894.0,0.10111191]
[1763376749042,0.0477296,95895.0,95894.0,0.10111191]
[1763376749243,0.0281856,95925.0,95894.0,0.10111191]
[1763376749447,0.03135551,95905.0,95904.0,0.05730122]
[1763376749683,0.323,95913.0,95904.0,0.05730122]
[1763376749993,0.323,95913.0,95905.0,0.02085397]
[1763376750198,0.323,95913.0,95906.0,0.02085375]
[1763376750399,0.323,95913.0,95907.0,0.02085353]
[1763376750400,0.04341874,95913.0,95907.0,0.02085353]
[1763376750553,0.03135502,95909.0,95907.0,0.01985353]
[1763376750736,0.323,95913.0,95905.0,0.02085397]
[1763376750937,0.03135413,95912.0,95906.0,0.02085375]
[1763376751158,0.03135413,95912.0,95907.0,0.02085353]
[1763376751470,0.03135413,95912.0,95908.0,0.02085331]
[1763376751674,0.03135413,95912.0,95909.0,0.0208531]
[1763376751876,0.03135413,95912.0,95910.0,0.02085288]
[1763376752057,0.001,95913.0,95911.0,0.02085266]
[1763376752279,0.03135259,95915.0,95912.0,0.03223244]
[1763376752694,0.001,95913.0,95912.0,0.03223244]
[1763376753094,0.03135259,95915.0,95912.0,0.03223244]
[1763376753308,0.03135259,95915.0,95913.0,0.02353]
[1763376753551,0.03135259,95915.0,95913.0,0.04438223]
[1763376753711,0.03135259,95915.0,95914.0,0.02085201]
[1763376753905,0.03135259,95915.0,95914.0,0.04438201]
[1763376754201,0.04341874,95921.0,95914.0,0.04438201]
[1763376754408,0.001,95915.0,95912.0,0.01138]
[1763376755017,0.001,95915.0,95913.0,0.02353]
[1763376755492,0.07477028,95921.0,95914.0,0.00043522]
[1763376755690,0.07477028,95921.0,95913.0,0.02353]
[1763376755804,0.07477028,95921.0,95920.0,0.00027202]
[1763376756634,0.07577028,95921.0,95920.0,0.00027202]
[1763376757097,0.07477028,95921.0,95920.0,0.00027202]
[1763376757311,0.07477028,95921.0,95920.0,0.02380202]
[1763376757518,0.07577028,95921.0,95920.0,0.02380202]
[1763376757739,0.03235154,95921.0,95920.0,0.02380202]
[1763376757950,0.03235154,95921.0,95920.0,0.02112272]
[1763376758143,0.03235154,95921.0,95920.0,0.00027202]
[1763376759307,0.03135154,95921.0,95920.0,0.00027202]
[1763376759541,0.03135154,95921.0,95920.0,0.02380202]
[1763376759760,0.03235154,95921.0,95920.0,0.02380202]
[1763376759976,0.03235154,95921.0,95920.0,0.00027202]
[1763376760446,0.03135154,95921.0,95920.0,0.00027202]
[1763376760650,0.03235154,95921.0,95920.0,0.00027202]
[1763376761594,0.03235154,95921.0,95920.0,0.02112272]
[1763376761823,0.03235154,95921.0,95920.0,0.00027202]
[1763376763029,0.03235154,95921.0,95920.0,0.02380202]
[1763376764059,0.001,95921.0,95920.0,0.00027202]
[1763376764489,0.02480202,95921.0,95920.0,0.00027202]
[1763376765757,0.02480202,95921.0,95920.0,0.02380202]
[1763376768006,0.02480202,95921.0,95920.0,0.00027202]
[1763376768214,0.02480202,95921.0,95920.0,0.03927202]
[1763376769117,0.02380202,95921.0,95920.0,0.06012272]
[1763376769333,0.01636494,95925.0,95920.0,0.03927202]
[1763376769543,0.01636494,95925.0,95924.0,0.10668122]
[1763376770808,0.01640901,95925.0,95924.0,0.10668122]
[1763376771234,0.01640901,95925.0,95924.0,0.04938]
[1763376771639,0.01740901,95925.0,95924.0,0.04938]
[1763376772147,0.01640901,95925.0,95924.0,0.04938]
[1763376772413,0.01740901,95925.0,95924.0,0.04938]
[1763376773664,0.01740901,95925.0,95924.0,0.02585]
[1763376774782,0.04325901,95925.0,95924.0,0.02585]
[1763376775387,0.04325901,95925.0,95924.0,0.0498]
[1763376775588,0.04325901,95925.0,95924.0,0.02585]
[1763376776959,0.02689407,95925.0,95924.0,0.02585]
[1763376777384,0.02689407,95925.0,95924.0,0.0498]
[1763376778264,0.02689407,95925.0,95924.0,0.02585]
[1763376784578,0.02689407,95925.0,95924.0,0.01138]
[1763376784864,0.02689407,95925.0,95921.0,0.02109531]
[1763376785003,0.02689407,95925.0,95921.0,0.00024482]
[1763376785213,0.02689407,95925.0,95922.0,0.05730122]
[1763376785649,0.02589407,95925.0,95922.0,0.05730122]
[1763376785847,0.02589407,95925.0,95924.0,0.01634]
[1763376787083,0.02689407,95925.0,95924.0,0.01634]
[1763376787621,0.06931281,95925.0,95924.0,0.01634]
[1763376788028,0.07031281,95925.0,95924.0,0.01634]
[1763376788229,0.07031281,95925.0,95924.0,0.04029]
[1763376788634,0.07031281,95925.0,95924.0,0.01634]
[1763376789155,0.07031281,95925.0,95924.0,0.03963]
[1763376791549,0.07031281,95925.0,95924.0,0.01568]
[1763376792603,0.07031281,95925.0,95924.0,0.03963]
[1763376794013,0.02689407,95925.0,95924.0,0.03963]
[1763376796270,0.02689407,95925.0,95924.0,0.01568]
[1763376797310,0.02689407,95925.0,95924.0,0.06018983]
[1763376797453,0.02689407,95925.0,95924.0,0.01568]
[1763376797871,0.02689407,95925.0,95922.0,0.02085027]
[1763376798073,0.02689407,95925.0,95921.0,0.00024482]
[1763376799375,0.02589407,95925.0,95921.0,0.00024482]
[1763376799583,0.02689407,95925.0,95921.0,0.00024482]
[1763376800155,0.02589407,95925.0,95921.0,0.00024482]
[1763376800505,0.02689407,95925.0,95921.0,0.02109531]
[1763376800713,0.02689407,95925.0,95922.0,0.02085027]
[1763376800918,0.02689407,95925.0,95923.0,0.02085005]
[1763376801137,0.02689407,95925.0,95921.0,0.00024482]
[1763376802289,0.02589407,95925.0,95921.0,0.00024482]
[1763376802715,0.02689407,95925.0,95921.0,0.00024482]
[1763376803130,0.02589407,95925.0,95921.0,0.00024482]
[1763376803535,0.02689407,95925.0,95921.0,0.00024482]
[1763376805456,0.23539138,95925.0,95921.0,0.00024482]
[1763376805684,0.02689407,95925.0,95921.0,0.00024482]
[1763376805896,0.323,95924.0,95921.0,0.00024482]
[1763376806978,0.02366,95923.0,95921.0,0.00024482]
[1763376809110,0.02466,95923.0,95921.0,0.00024482]
[1763376809653,0.001,95923.0,95921.0,0.00024482]
[1763376809852,0.02315,95922.0,95921.0,0.00024482]
[1763376811952,0.02415,95922.0,95921.0,0.00024482]
[1763376813846,0.02415,95922.0,95921.0,0.03999482]
[1763376814093,0.001,95922.0,95921.0,0.08941482]
[1763376815276,0.001,95922.0,95921.0,0.19041482]
[1763376815521,4.407e-05,95925.0,95921.0,0.19041482]
[1763376815522,4.407e-05,95925.0,95922.0,0.04942]
[1763376815721,4.407e-05,95925.0,95924.0,0.08521122]
[1763376815933,4.407e-05,95925.0,95924.0,0.12921105]
[1763376816901,4.407e-05,95925.0,95924.0,0.23021105]
[1763376819914,4.407e-05,95925.0,95924.0,0.54296105]
[1763376820125,4.407e-05,95925.0,95924.0,0.52211122]
[1763376824405,4.407e-05,95925.0,95924.0,0.57153122]
[1763376824757,0.03083664,95937.0,95936.0,0.02891]
[1763376824958,0.03083664,95937.0,95936.0,0.34175255]
[1763376825168,0.03083664,95937.0,95936.0,0.36490255]
[1763376828512,0.03083664,95937.0,95936.0,0.34175255]
[1763376828708,0.03083664,95937.0,95936.0,0.31284255]
[1763376831277,0.03183664,95937.0,95936.0,0.31284255]
[1763376831472,0.03083664,95937.0,95936.0,0.31284255]
[1763376831838,0.03183664,95937.0,95936.0,0.31284255]
[1763376832548,0.07525538,95937.0,95936.0,0.31284255]
[1763376836019,0.0799555,95937.0,95936.0,0.31284255]
[1763376838219,0.07525538,95937.0,95936.0,0.31284255]
[1763376840093,0.39825538,95937.0,95936.0,0.31284255]
[1763376841084,0.07525538,95937.0,95936.0,0.31284255]
[1763376841489,0.0799555,95937.0,95936.0,0.31284255]
[1763376843484,0.07525538,95937.0,95936.0,0.31284255]
[1763376843960,0.39825538,95937.0,95936.0,0.31284255]
[1763376844302,0.60672552,95937.0,95936.0,0.31284255]
[1763376846154,0.62927737,95937.0,95936.0,0.31284255]
[1763376846550,0.63906437,95937.0,95936.0,0.31284255]
[1763376846752,0.63806437,95937.0,95936.0,0.31284255]
[1763376847250,0.66724006,95937.0,95936.0,0.31284255]
[1763376847449,0.66824006,95937.0,95936.0,0.31284255]
[1763376847715,0.66724006,95937.0,95936.0,0.31284255]
[1763376847928,0.62827737,95937.0,95936.0,0.31284255]
[1763376848129,0.63027737,95937.0,95936.0,0.31284255]
[1763376849715,0.64664311,95937.0,95936.0,0.31284255]
[1763376860415,0.63027737,95937.0,95936.0,0.31284255]
[1763376863717,0.64664359,95937.0,95936.0,0.31284255]
[1763376865909,0.43717345,95937.0,95936.0,0.31284255]
[1763376866167,0.64464359,95937.0,95936.0,0.31284255]
[1763376866332,0.64564359,95937.0,95936.0,0.31284255]
[1763376866968,0.64664359,95937.0,95936.0,0.31284255]
[1763376868551,0.64464359,95937.0,95936.0,0.31284255]
[1763376868926,0.64664359,95937.0,95936.0,0.31284255]
[1763376877096,0.656438,95937.0,95936.0,0.31284255]
[1763376880843,0.68041499,95937.0,95936.0,0.31284255]
[1763376881093,0.73542786,95937.0,95936.0,0.31284255]
[1763376881309,0.57492148,95922.0,95921.0,0.00024482]
[1763376881523,0.59747333,95922.0,95921.0,0.00024482]
[1763376881971,0.63850065,95922.0,95921.0,0.00024482]
[1763376882612,0.63950065,95922.0,95921.0,0.00024482]
[1763376882764,0.63392558,95922.0,95921.0,0.00024482]
[1763376883142,0.62413333,95922.0,95921.0,0.00024482]
[1763376883749,0.65497872,95922.0,95921.0,0.00024482]
[1763376883973,0.63392284,95922.0,95921.0,0.00024482]
[1763376884169,0.62413333,95922.0,95921.0,0.00024482]
[1763376884381,0.62413333,95922.0,95892.0,0.01228]
[1763376884382,0.20856579,95893.0,95892.0,0.01228]
[1763376884611,0.20856579,95893.0,95884.0,0.01228]
[1763376884612,0.57498671,95892.0,95884.0,0.01228]
[1763376884820,0.57498671,95892.0,95891.0,0.00213257]
[1763376885026,0.60004671,95892.0,95891.0,0.00213257]
[1763376885221,0.60004671,95892.0,95891.0,0.00294878]
[1763376885651,0.62258105,95892.0,95891.0,0.00294878]
[1763376885801,0.63895227,95892.0,95891.0,0.00294878]
[1763376886244,0.63995279,95892.0,95891.0,0.00294878]
[1763376886551,0.61741793,95892.0,95891.0,0.00294878]
[1763376887826,0.61841793,95892.0,95891.0,0.00294878]
[1763376888023,0.61741793,95892.0,95891.0,0.00294878]
[1763376888239,0.61841793,95892.0,95891.0,0.00294878]
[1763376888474,0.57501064,95881.0,95880.0,0.0004]
[1763376888821,0.57501064,95881.0,95880.0,0.00044407]
[1763376889665,0.59747713,95881.0,95880.0,0.00044407]
[1763376890820,0.59847713,95881.0,95880.0,0.00044407]
[1763376891264,0.59947713,95881.0,95880.0,0.00044407]
[1763376891495,0.57701064,95881.0,95880.0,0.00044407]
[1763376891719,0.58119373,95881.0,95880.0,0.00044407]
[1763376894164,0.58119373,95881.0,95880.0,0.00074365]
[1763376895475,0.37260183,95881.0,95880.0,0.00074365]
[1763376896062,0.38897751,95881.0,95880.0,0.00074365]
[1763376896242,0.37260183,95881.0,95880.0,0.00074365]
[1763376898793,0.58119373,95881.0,95880.0,0.00074365]
[1763376899449,0.59756987,95881.0,95880.0,0.00074365]
[1763376901025,0.59756987,95881.0,95849.0,0.01192]
[1763376901026,0.04341874,95870.0,95849.0,0.01192]
[1763376901250,0.57505416,95861.0,95860.0,0.0008422]
[1763376901704,0.5792377,95861.0,95860.0,0.0008422]
[1763376902159,0.58994568,95861.0,95860.0,0.0008422]
[1763376902631,0.58994568,95861.0,95840.0,0.0004]
[1763376902632,0.57507374,95852.0,95840.0,0.0004]
[1763376902860,0.57509769,95841.0,95840.0,0.0004]
[1763376903062,0.57511947,95831.0,95820.0,0.0004]
[1763376903459,0.58703947,95831.0,95820.0,0.0004]
[1763376904349,0.58748082,95831.0,95820.0,0.0004]
[1763376904604,0.58848082,95831.0,95820.0,0.0004]
[1763376905185,0.58948082,95831.0,95820.0,0.0004]
[1763376905796,0.66898879,95831.0,95820.0,0.0004]
[1763376909771,0.68537167,95831.0,95820.0,0.0004]
[1763376910004,0.66898879,95831.0,95820.0,0.0004]
[1763376910177,0.66898879,95831.0,95830.0,0.00176148]
[1763376913070,0.68537199,95831.0,95830.0,0.00176148]
[1763376913271,0.7077489,95831.0,95830.0,0.00176148]
[1763376914106,0.7077489,95831.0,95830.0,0.04045148]
[1763376914107,0.39716329,95831.0,95830.0,0.04045148]
[1763376914313,0.39716329,95831.0,95830.0,0.01753148]
[1763376915707,0.39716329,95831.0,95830.0,0.00176148]
[1763376916176,0.60586402,95831.0,95830.0,0.00176148]
[1763376916376,0.62826669,95831.0,95830.0,0.00176148]
[1763376920329,0.63799854,95831.0,95830.0,0.00176148]
[1763376922222,0.63800096,95831.0,95830.0,0.00176148]
[1763376924147,0.63800096,95831.0,95830.0,0.01754148]
[1763376924591,0.42930023,95831.0,95830.0,0.00176148]
[1763376924815,0.01436135,95831.0,95830.0,0.04158148]
[1763376925278,0.00244135,95831.0,95830.0,0.04158148]
[1763376925661,0.00144135,95831.0,95830.0,0.04158148]
[1763376925874,0.00044135,95831.0,95830.0,0.04158148]
[1763376926101,0.00044135,95831.0,95830.0,0.06245177]
[1763376928248,0.00044135,95831.0,95830.0,0.04158148]
[1763376928990,0.00044135,95831.0,95830.0,0.14158148]
[1763376929398,0.00044135,95831.0,95830.0,0.16245177]
[1763376930368,0.00044135,95831.0,95830.0,0.14158148]
[1763376938483,0.00044135,95831.0,95830.0,0.16245177]
[1763376941303,0.00044135,95831.0,95830.0,0.14158148]
[1763376954212,0.00039335,95831.0,95830.0,0.14158148]
[1763376955180,0.00039335,95831.0,95830.0,0.16245177]
[1763376956243,0.00039335,95831.0,95830.0,0.14158148]
[1763376959211,0.00039335,95831.0,95830.0,0.45463148]
[1763376960430,0.00039335,95831.0,95830.0,5.45463148]
[1763376960629,0.5193428,95860.0,95840.0,0.2]
[1763376960796,0.5193428,95860.0,95858.0,0.01242]
[1763376960995,0.02815817,95884.0,95860.0,4.7194]
[1763376961194,0.01034611,95884.0,95883.0,0.02804]
[1763376961442,0.02804,95885.0,95883.0,0.34092]
[1763376961663,0.323,95888.0,95884.0,0.03832]
[1763376961854,0.04341874,95892.0,95887.0,0.01562]
[1763376962014,0.03136311,95887.0,95885.0,0.04355831]
[1763376962530,0.03136311,95887.0,95886.0,0.05074]
[1763376964175,0.03136311,95887.0,95886.0,0.02804]
[1763376964580,0.07948197,95887.0,95886.0,0.01242]
[1763376965203,0.04341874,95886.0,95884.0,0.31288]
[1763376965432,0.04811886,95885.0,95884.0,0.31288]
[1763376965841,0.40100042,95885.0,95884.0,0.31288]
[1763376965989,0.3963003,95885.0,95884.0,0.31288]
[1763376966366,0.42242706,95885.0,95884.0,0.31288]
[1763376966823,0.44489434,95885.0,95884.0,0.31288]
[1763376968406,0.44489113,95885.0,95884.0,0.31288]
[1763376969141,0.42242706,95885.0,95884.0,0.31288]
[1763376971942,0.44488917,95885.0,95884.0,0.31288]
[1763376972531,0.47625934,95885.0,95884.0,0.31288]
[1763376973340,0.45013258,95885.0,95884.0,0.31288]
[1763376975594,0.65871577,95885.0,95884.0,0.31288]
[1763376977922,0.67509409,95885.0,95884.0,0.31288]
[1763376979961,0.57503022,95872.0,95871.0,0.00024503]
[1763376980201,0.57503022,95872.0,95871.0,0.00028922]
[1763376980656,0.60640383,95872.0,95871.0,0.00028922]
[1763376980847,0.68536896,95872.0,95871.0,0.00028922]
[1763376981252,0.323,95850.0,95849.0,0.01242]
[1763376981495,0.323,95850.0,95849.0,0.01246422]
[1763376981692,0.323,95850.0,95849.0,0.05052422]
[1763376987039,0.323,95850.0,95849.0,0.01306322]
[1763376987040,0.36641874,95850.0,95849.0,0.01306322]
[1763376987860,0.5750781,95850.0,95849.0,0.00064322]
[1763376988325,0.60645397,95850.0,95849.0,0.00064322]
[1763376991539,0.41417596,95850.0,95849.0,0.00064322]
[1763376994002,0.41417596,95850.0,95849.0,0.04004322]
[1763376994211,0.41417596,95850.0,95849.0,0.01679322]
[1763376996019,0.42667665,95850.0,95849.0,0.01679322]
[1763376996431,0.63533601,95850.0,95849.0,0.00064322]
[1763377000459,0.42667665,95850.0,95849.0,0.00064322]
[1763377000664,0.63533601,95850.0,95849.0,0.00064322]
[1763377001979,0.42667665,95850.0,95849.0,0.00064322]
[1763377002225,0.63533601,95850.0,95849.0,0.00064322]
[1763377003800,0.42667665,95850.0,95849.0,0.00064322]
[1763377004203,0.63533601,95850.0,95849.0,0.00064322]
[1763377006601,0.42667665,95850.0,95849.0,0.00064322]
[1763377006750,0.63533601,95850.0,95849.0,0.00064322]
[1763377010493,0.65786188,95850.0,95849.0,0.00064322]
[1763377013121,0.64148053,95850.0,95849.0,0.00064322]
[1763377016266,0.65786222,95850.0,95849.0,0.00064322]
[1763377020919,0.44920286,95850.0,95849.0,0.00064322]
[1763377021318,0.44920286,95850.0,95849.0,0.04001322]
[1763377021702,0.40578412,95850.0,95849.0,0.04001322]
[1763377021905,0.06025825,95850.0,95849.0,0.04001322]
[1763377022136,0.02888238,95850.0,95849.0,0.04001322]
[1763377022556,0.02888238,95850.0,95849.0,0.06087937]
[1763377022557,0.01250069,95850.0,95849.0,0.06087937]
[1763377023180,0.01250069,95850.0,95849.0,0.04001322]
[1763377023628,0.01250069,95850.0,95849.0,0.14001322]
[1763377023998,0.01250069,95850.0,95849.0,0.14101322]
[1763377024496,0.01250069,95850.0,95849.0,0.14201322]
[1763377025729,0.04387289,95850.0,95849.0,0.14201322]
[1763377032152,0.01250069,95850.0,95849.0,0.14201322]
[1763377032356,0.01250069,95850.0,95849.0,0.16287937]
[1763377033405,0.01250069,95850.0,95849.0,0.14201322]
[1763377034053,0.01250069,95850.0,95849.0,0.16287937]
[1763377041679,0.01250069,95850.0,95849.0,0.47586937]
[1763377041880,0.01250069,95850.0,95849.0,0.45500322]
[1763377051981,0.58757879,95850.0,95849.0,0.45500322]
[1763377052206,0.58757879,95850.0,95849.0,0.33087322]
[1763377052207,0.61895558,95850.0,95849.0,0.33087322]
[1763377052406,0.64252486,95850.0,95849.0,0.31563322]
[1763377052849,0.66503436,95850.0,95849.0,0.31563322]
[1763377053053,0.64146508,95850.0,95849.0,0.31563322]
[1763377053227,0.65784653,95850.0,95849.0,0.31463322]
[1763377053429,0.65784653,95850.0,95849.0,0.31363322]
[1763377054213,0.63533703,95850.0,95849.0,0.31363322]
[1763377054997,0.65890631,95850.0,95849.0,0.31363322]
[1763377057261,0.63533703,95850.0,95849.0,0.31363322]
[1763377057860,0.62427782,95850.0,95849.0,0.31363322]
[1763377058871,0.61927782,95850.0,95849.0,0.31363322]
[1763377061669,0.61927782,95850.0,95849.0,0.32967322]
[1763377062731,0.61927782,95850.0,95849.0,0.31363322]
[1763377069727,0.41061846,95850.0,95849.0,0.31363322]
[1763377069968,0.41061846,95850.0,95849.0,0.35408322]
[1763377070340,0.61927782,95850.0,95849.0,0.32967322]
[1763377072556,0.61927782,95850.0,95849.0,0.35408322]
[1763377072749,0.61927782,95850.0,95849.0,0.31363322]
[1763377079183,0.6417539,95850.0,95849.0,0.31363322]
[1763377081076,0.43309454,95850.0,95849.0,0.31363322]
[1763377081501,0.6417539,95850.0,95849.0,0.31363322]
[1763377084214,0.6417539,95850.0,95849.0,0.35412322]
[1763377084434,0.6417539,95850.0,95849.0,0.31363322]
[1763377087373,0.43309454,95850.0,95849.0,0.31363322]
[1763377087611,0.6417539,95850.0,95849.0,0.31363322]
[1763377092771,0.43309454,95850.0,95849.0,0.31363322]
[1763377092933,0.43309454,95850.0,95849.0,0.35412322]
[1763377093307,0.43309454,95850.0,95849.0,0.32951322]
[1763377096035,0.6417539,95850.0,95849.0,0.32951322]
[1763377096241,0.43309454,95850.0,95849.0,0.32951322]
[1763377096445,0.6417539,95850.0,95849.0,0.32951322]
[1763377096819,0.43309454,95850.0,95849.0,0.32951322]
[1763377097793,0.6417539,95850.0,95849.0,0.32951322]
[1763377100966,0.6417539,95850.0,95849.0,0.31363322]
[1763377105857,0.65152855,95850.0,95849.0,0.31363322]
[1763377111412,0.65152735,95850.0,95849.0,0.31363322]
[1763377115572,0.6417539,95850.0,95849.0,0.31363322]
[1763377116049,0.65152626,95850.0,95849.0,0.31363322]
[1763377116463,0.6417539,95850.0,95849.0,0.31363322]
[1763377117687,0.65152572,95850.0,95849.0,0.31363322]
[1763377117887,0.65152578,95850.0,95849.0,0.31363322]
[1763377121909,0.93000734,95850.0,95849.0,0.31363322]
[1763377122856,0.93200734,95850.0,95849.0,0.31363322]
[1763377123094,0.57511947,95831.0,95820.0,0.0004]
[1763377123304,0.57511947,95831.0,95826.0,0.1]
[1763377123670,0.6228892,95831.0,95830.0,0.00091758]
[1763377124277,0.6228892,95831.0,95830.0,0.01689758]
[1763377127196,0.41418847,95831.0,95830.0,0.01689758]
[1763377133606,0.41418847,95831.0,95830.0,0.03998758]
[1763377143409,0.41418847,95831.0,95830.0,0.06085787]
[1763377143769,0.35438671,95831.0,95830.0,0.03998758]
[1763377144933,0.35438671,95831.0,95830.0,0.14098758]
[1763377146048,0.35438671,95831.0,95830.0,0.14198758]
[1763377148129,0.35438671,95831.0,95830.0,0.13138075]
[1763377148544,0.35438671,95831.0,95830.0,0.15225104]
[1763377149093,0.35438671,95831.0,95830.0,0.13138075]
[1763377154412,0.35438671,95831.0,95830.0,0.13038075]
[1763377154890,0.35438671,95831.0,95830.0,0.12938075]
[1763377155980,0.35438671,95831.0,95830.0,0.13038075]
[1763377158270,0.35438671,95831.0,95830.0,0.15125104]
[1763377160133,0.35438671,95831.0,95830.0,0.13038075]
[1763377199213,0.35438671,95831.0,95830.0,0.15125104]
[1763377203493,0.03138671,95831.0,95830.0,0.15125104]
[1763377205111,0.03138671,95831.0,95830.0,0.46430104]
[1763377205281,0.03138671,95831.0,95830.0,0.44343075]
[1763377205679,0.02814979,95869.0,95834.0,0.04942]
[1763377205883,0.01637918,95868.0,95866.0,0.01231]
[1763377206291,0.03137141,95868.0,95867.0,0.03855]
[1763377206752,0.07479015,95868.0,95867.0,0.03855]
[1763377206953,0.03137141,95868.0,95867.0,0.03855]
[1763377207679,0.07479015,95868.0,95867.0,0.03855]
[1763377210019,0.03137141,95868.0,95867.0,0.37234223]
[1763377210234,0.03137141,95868.0,95867.0,0.45148]
[1763377212641,0.03137141,95868.0,95867.0,0.35148]
[1763377215478,0.07479015,95868.0,95867.0,0.32815]
[1763377215683,0.61111045,95868.0,95867.0,0.31293]
[1763377215841,0.70686241,95868.0,95867.0,0.31293]
[1763377216032,0.60641033,95868.0,95867.0,0.31293]
[1763377216437,0.62885011,95868.0,95867.0,0.31293]
[1763377216866,0.62985011,95868.0,95867.0,0.31293]
[1763377217163,0.63085011,95868.0,95867.0,0.31293]
[1763377222960,0.63085966,95868.0,95867.0,0.31293]
[1763377225660,0.60841033,95868.0,95867.0,0.31293]
[1763377231342,0.63088113,95868.0,95867.0,0.31293]
[1763377232245,0.62988113,95868.0,95867.0,0.31293]
[1763377232502,0.62888113,95868.0,95867.0,0.31293]
[1763377232675,0.63863428,95868.0,95867.0,0.31293]
[1763377232871,0.64063428,95868.0,95867.0,0.31293]
[1763377233504,0.65701494,95868.0,95867.0,0.31293]
[1763377233845,0.64063428,95868.0,95867.0,0.31293]
[1763377236009,0.64063521,95868.0,95867.0,0.31293]
[1763377236776,0.6570159,95868.0,95867.0,0.31293]
[1763377240466,0.68507756,95868.0,95867.0,0.31293]
[1763377242271,0.6570159,95868.0,95867.0,0.31293]
[1763377245961,0.57510205,95839.0,95838.0,0.01205]
[1763377246281,0.36641874,95839.0,95838.0,0.01205]
[1763377246459,0.57510205,95839.0,95838.0,0.01205]
[1763377247085,0.59921205,95839.0,95838.0,0.01205]
[1763377247873,0.39052874,95839.0,95838.0,0.02781]
[1763377248076,0.39052874,95839.0,95838.0,0.05192]
[1763377249693,0.59921205,95839.0,95838.0,0.05192]
[1763377250739,0.39052874,95839.0,95838.0,0.02781]
[1763377251283,0.39052874,95839.0,95838.0,0.05192]
[1763377252590,0.39052874,95839.0,95838.0,0.02781]
[1763377253176,0.59921205,95839.0,95838.0,0.02781]
[1763377253574,0.39052874,95839.0,95838.0,0.02781]
[1763377254403,0.39052874,95839.0,95838.0,0.0518]
[1763377257428,0.02411,95839.0,95838.0,0.0518]
[1763377258759,0.02411,95839.0,95838.0,0.1528]
[1763377260846,0.02411,95839.0,95838.0,0.1518]
[1763377261084,0.02411,95839.0,95838.0,0.1528]
[1763377261535,0.59921205,95839.0,95838.0,0.12881]
[1763377261764,0.59921205,95839.0,95838.0,0.101]
[1763377262013,0.59921205,95839.0,95838.0,0.001]
[1763377262695,0.62172477,95839.0,95838.0,0.001]
[1763377263146,0.36641874,95836.0,95829.0,0.02399]
[1763377263362,0.04341874,95834.0,95829.0,0.0240341]
[1763377263793,0.36641874,95834.0,95829.0,0.0240341]
[1763377264254,0.04341874,95835.0,95833.0,0.01575]
[1763377264689,0.323,95832.0,95830.0,0.02087029]
[1763377264904,0.323,95832.0,95829.0,4.41e-05]
[1763377264905,0.04341874,95830.0,95829.0,4.41e-05]
[1763377265344,0.04341874,95830.0,95829.0,0.0157941]
[1763377266854,0.04341874,95830.0,95829.0,0.0397841]
[1763377268387,0.07480059,95830.0,95829.0,0.0397841]
[1763377268872,0.6065035,95830.0,95829.0,0.0157941]
[1763377269102,0.6065035,95830.0,95829.0,4.41e-05]
[1763377271792,0.62288729,95830.0,95829.0,4.41e-05]
[1763377272009,0.39780059,95830.0,95829.0,4.41e-05]
[1763377272228,0.39780059,95830.0,95829.0,0.0397841]
[1763377272674,0.6065035,95830.0,95829.0,0.0397841]
[1763377273784,0.39780059,95830.0,95829.0,0.0397841]
[1763377275466,0.6065035,95830.0,95829.0,4.41e-05]
[1763377275647,0.6228869,95830.0,95829.0,4.41e-05]
[1763377275890,0.6065035,95830.0,95829.0,4.41e-05]
[1763377278733,0.6228872,95830.0,95829.0,4.41e-05]
[1763377283081,0.67524146,95830.0,95829.0,4.41e-05]
[1763377283282,0.70134709,95830.0,95829.0,4.41e-05]
[1763377283897,0.71109819,95830.0,95829.0,4.41e-05]
[1763377284103,0.73922705,95830.0,95829.0,4.41e-05]
[1763377284437,0.71209819,95830.0,95829.0,4.41e-05]
[1763377285042,0.71109819,95830.0,95829.0,4.41e-05]
[1763377285268,0.71209819,95830.0,95829.0,4.41e-05]
[1763377285479,0.70234709,95830.0,95829.0,4.41e-05]
[1763377285683,0.70334709,95830.0,95829.0,4.41e-05]
[1763377286063,0.70234709,95830.0,95829.0,4.41e-05]
[1763377286266,0.49564418,95830.0,95829.0,4.41e-05]
[1763377286561,0.64635991,95830.0,95829.0,4.41e-05]
[1763377286737,0.64535991,95830.0,95829.0,4.41e-05]
[1763377286936,0.64635991,95830.0,95829.0,4.41e-05]
[1763377287137,0.438657,95830.0,95829.0,4.41e-05]
[1763377287499,0.6248872,95830.0,95829.0,4.41e-05]
[1763377289274,0.39980059,95830.0,95829.0,4.41e-05]
[1763377289637,0.6085035,95830.0,95829.0,4.41e-05]
[1763377289840,0.39980059,95830.0,95829.0,4.41e-05]
[1763377290456,0.6085035,95830.0,95829.0,4.41e-05]
[1763377291314,0.39980059,95830.0,95829.0,4.41e-05]
[1763377291630,0.42227944,95830.0,95829.0,4.41e-05]
[1763377292007,0.39980059,95830.0,95829.0,4.41e-05]